Workbook

Sheet Main
I2: Volta 2.1 Configuration Manager
B6: Pack(s) Information
D7: Number of Modules: | F7: Total Output / Input Current in Pack # 1 (A) | H7: Total Whr's of Energy in Pack # 1 | J7: Total Useable Energy in Pack # 1 | L7: Total Energy in System (Whr)
B8: Battery Number # 1 Size: | D8: 6 | F8: ="Output " & D8*Pack!$B$34 -> Output 522 | G8: A | H8: =D8*Pack!B22 -> 20218.8 | I8: Whr's | J8: =D8*Pack!B25 -> 18196.92 | K8: Whr's | L8: =SUM(H8+H12+H16+H20) -> 20218.8 | M8: Whr
B9: Heating Options | F9: ="Input " &D8*Pack!$B$49 -> Input 261 | G9: A
B10: None | F10: =IF(D8*Pack!$B$34>Pack!B$52,"Fuse Limited","") -> Fuse Limited | G10: =IF(F10="Fuse Limited","@ "&Pack!$B$52 & "A","") -> @ 350A
D11: Number of Modules: | F11: Total Output / Input Current in Pack # 2 (A) | H11: Total Whr's of Energy in Pack # 2 | J11: Total Useable Energy in Pack # 2 | L11: Total Usable Energy in System (Whr)
B12: Battery Number # 2 Size: | D12: 0 | F12: ="Output " & D12*Pack!$B$34 -> Output 0 | G12: A | H12: =D12*Pack!B22 -> 0 | I12: Whr's | J12: =D12*Pack!B25 -> 0 | K12: Whr's | L12: =SUM(J8+J12+J16+J20) -> 18196.92 | M12: Whr
B13: Heating Options | F13: ="Input " &D12*Pack!$B$49 -> Input 0 | G13: A
B14: None | F14: =IF(D12*Pack!$B$34>Pack!B$52,"Fuse Limited","") ->  | G14: =IF(F14="Fuse Limited","@ "&Pack!$B$52 & "A","") -> 
D15: Number of Modules: | F15: Total Output / Input Current in Pack # 3 (A) | H15: Total Whr's of Energy in Pack # 3 | J15: Total Useable Energy in Pack # 3 | L15: Total Discharge capability of System (A)
B16: Battery Number # 3 Size: | D16: 0 | F16: ="Output " & D16*Pack!$B$34 -> Output 0 | G16: A | H16: =D16*Pack!B22 -> 0 | I16: Whr's | J16: =D16*Pack!B25 -> 0 | K16: Whr's | L16: =IF(SUM($D$8,$D$12,$D$16,$D$20)*Pack!$B$34>(SUM(COUNTIF(D8:D21,">"&0))*Pack!$B$52),(SUM(COUNTIF(D8:D21,">"&0))*Pack!$B$52),SUM($D$8,$D$12,$D$16,$D$20)*Pack!$B$34) -> 350 | M16: A
B17: Heating Options | F17: ="Input " &D16*Pack!$B$49 -> Input 0 | G17: A | L17: =IF(SUM($D$8,$D$12,$D$16,$D$20)*Pack!$B$34>(SUM(COUNTIF(D8:D21,">"&0))*Pack!$B$52),"Pack is now Fuse Limited","") -> Pack is now Fuse Limited
B18: None | F18: =IF(D16*Pack!$B$34>Pack!B$52,"Fuse Limited","") ->  | G18: =IF(F18="Fuse Limited","@ "&Pack!$B$52 & "A","") -> 
D19: Number of Modules: | F19: Total Output / Input Current in Pack # 4 (A) | H19: Total Whr's of Energy in Pack # 4 | J19: Total Useable Energy in Pack # 4 | L19: Total Charging capability of System (A)
B20: Battery Number # 4 Size: | D20: 0 | F20: ="Output " & D20*Pack!$B$34 -> Output 0 | G20: A | H20: =D20*Pack!B22 -> 0 | I20: Whr's | J20: =D20*Pack!B25 -> 0 | K20: Whr's | L20: =SUM($D$8,$D$12,$D$16,$D$20)*Pack!$B$49 -> 261 | M20: A
B21: Heating Options | F21: ="Input " &D20*Pack!$B$49 -> Input 0 | G21: A
B22: None | F22: =IF(D20*Pack!$B$34>Pack!B$52,"Fuse Limited","") ->  | G22: =IF(F22="Fuse Limited","@ "&Pack!$B$52 & "A","") -> 
B25: Pack Capabilty: | C25: System Devices: | D25: Robustness Margins
B26: Total Discharging Capabilty (A) | C26: 58V Bus Discharging Current (A) | D26: Discharge Robustness Margin (A) | F26: =IF(D27<0,"Increase Battery Size or Remove Inverter or Converter off 58V Bus.","") ->  | I26: Volta Junction Box: | J26: =IF(H35<2,"Yes",(IF(D8>0,IF(OR(D12>0,D16>0,D20>0),"Yes"," No"),"No"))) -> Yes | K26: Require Junction Box | M26: Max Current thru Contactor [600A] (A) | N26: Max Current thru Disconnect Switch [400 A] (A)
B27: =L16 -> 350 | C27: =SUM(H54:H56,L41:L44) -> 200 | D27: =B27-C27 -> 150 | M27: =C27 -> 200 | N27: =C27 -> 200 | O27: =IF(N27<=400,"Junction Box Within Specifications",IF((AND(N27>400,N27<450)),"Disconnect switch capable of 2000A for 1 Min.","May Require BD Version of Battery Disconnect")) -> Junction Box Within Specifications
F28: C Rate
B29: Total Charging Capability (A) | C29: 58V Bus Charging Current (A) | D29: Charging Robustness Margin (A) | F29: =IFERROR(ROUND(C30/SUM((D8+D12+D16+D20)*58),2),0) -> 0.29 | H29: Do Not Exceed 0.75C Rate
B30: =L20 -> 261 | C30: =IF(K30=TRUE,SUM(O41:O44),0)+IF(K31=TRUE,SUM(G48:G49),0) -> 100 | D30: =B30-C30 -> 161 | H30: Time To Charge System Batteries from 10% SOC (Hours : Min.) | J30: =IF(C30=0,"Infinite",((L12/(14*4.15))/C30)/24) -> 03:07:55.200 | K30: TRUE
K31: TRUE
B33: Total Usable Energy in System (Whr) | D33: =L12 -> 18196.92 | H33: Minimum Generator Size for Fastest Charging Time | J33: =(SUM(N41:N44)*120)+(SUM(R41:R44)*120) -> 14400 | K33: Watts | L33: This number represents max current draw for the Chargers plus the max current through the Bypass relays.
B34: Total Needed Energy from System (W) | D34: =((SUM(E70,J70,O70))*1.09)+(E84*1.1)+(J84*1.1)+(O84*1.1) -> 2353.0464
H35: 1
B36: Total Operation of Volta 2.0 Battery System (Hr's) | D36: =IFERROR(ROUND(D33/D34,2),0) &" Hrs" -> 7.73 Hrs
B39: Inverter / Charger (s)
B40: Branch | C40: Inverter / Charger | E40: Inverter Only | G40: Weight (lbs) | H40: Ourput Voltage (VAC) | I40: Inverter: Cont. AC Output Power (W) | J40: Inverter: Output Current (Amps AC Cont.) | K40: Inverter: Peak AC Output Power (W) | L40: Inverter: Max. Normal DC Input Current (Amps DC) | M40: Inverter: Peak DC Input Current (Amps DC) | N40: Charger: Max. Branch AC Input Current (Amps AC) | O40: Charger: Max. Output Current (Amps DC) | P40: BMS Software: Charger Enable off (% SOC) | Q40: BMS Software: Charger Enable On (% SOC) | R40: Bypass Relay (Amps AC) | S40: DC Bus Transient Clamping (J)
B41: L1 | C41: Sensata 51NP36HRQ-099 | E41: FALSE | G41: =VLOOKUP($C41,InvrtChgrs!$A$2:$X$30,13,FALSE) -> 68 | H41: =VLOOKUP($C41,InvrtChgrs!$A$2:$X$30,5,FALSE) -> 120 | I41: =VLOOKUP($C41,InvrtChgrs!$A$2:$X$30,2,FALSE) -> 3600 | J41: =VLOOKUP($C41,InvrtChgrs!$A$2:$X$30,4,FALSE) -> 30 | K41: =VLOOKUP($C41,InvrtChgrs!$A$2:$X$30,3,FALSE) -> 6000 | L41: =VLOOKUP($C41,InvrtChgrs!$A$2:$X$30,7,FALSE) -> 77 | M41: =VLOOKUP($C41,InvrtChgrs!$A$2:$X$30,6,FALSE) -> 91 | N41: =IF(E41=FALSE,(VLOOKUP($C41,InvrtChgrs!$A$2:$X$30,17,FALSE)),0) -> 30 | O41: =IF(E41=FALSE,VLOOKUP($C41,InvrtChgrs!$A$2:$X$30,18,FALSE),0) -> 50 | P41: =IF(O41>0,0.96,0) -> 0.96 | Q41: =IF(O41>0,0.92,0) -> 0.92 | R41: =IF(E41=FALSE,VLOOKUP($C41,InvrtChgrs!$A$2:$X$30,22,FALSE),0) -> 30 | S41: =VLOOKUP($C41,InvrtChgrs!$A$2:$X$30,23,FALSE) -> 2100
B42: L2 | C42: Sensata 51NP36HRQ-099 | E42: FALSE | G42: =VLOOKUP($C42,InvrtChgrs!$A$2:$X$30,13,FALSE) -> 68 | H42: =VLOOKUP($C42,InvrtChgrs!$A$2:$X$30,5,FALSE) -> 120 | I42: =VLOOKUP($C42,InvrtChgrs!$A$2:$X$30,2,FALSE) -> 3600 | J42: =VLOOKUP($C42,InvrtChgrs!$A$2:$X$30,4,FALSE) -> 30 | K42: =VLOOKUP($C42,InvrtChgrs!$A$2:$X$30,3,FALSE) -> 6000 | L42: =VLOOKUP($C42,InvrtChgrs!$A$2:$X$30,7,FALSE) -> 77 | M42: =VLOOKUP($C42,InvrtChgrs!$A$2:$X$30,6,FALSE) -> 91 | N42: =IF(E42=FALSE,(VLOOKUP($C42,InvrtChgrs!$A$2:$X$30,17,FALSE)),0) -> 30 | O42: =IF(E42=FALSE,VLOOKUP($C42,InvrtChgrs!$A$2:$X$30,18,FALSE),0) -> 50 | P42: =IF(O42>0,0.96,0) -> 0.96 | Q42: =IF(O42>0,0.92,0) -> 0.92 | R42: =IF(E42=FALSE,VLOOKUP($C42,InvrtChgrs!$A$2:$X$30,22,FALSE),0) -> 30 | S42: =VLOOKUP($C42,InvrtChgrs!$A$2:$X$30,23,FALSE) -> 2100
B43: L3 | C43: None | E43: FALSE | G43: =VLOOKUP($C43,InvrtChgrs!$A$2:$X$30,13,FALSE) -> 0 | H43: =VLOOKUP($C43,InvrtChgrs!$A$2:$X$30,5,FALSE) -> 0 | I43: =VLOOKUP($C43,InvrtChgrs!$A$2:$X$30,2,FALSE) -> 0 | J43: =VLOOKUP($C43,InvrtChgrs!$A$2:$X$30,4,FALSE) -> 0 | K43: =VLOOKUP($C43,InvrtChgrs!$A$2:$X$30,3,FALSE) -> 0 | L43: =VLOOKUP($C43,InvrtChgrs!$A$2:$X$30,7,FALSE) -> 0 | M43: =VLOOKUP($C43,InvrtChgrs!$A$2:$X$30,6,FALSE) -> 0 | N43: =IF(E43=FALSE,(VLOOKUP($C43,InvrtChgrs!$A$2:$X$30,17,FALSE)),0) -> 0 | O43: =IF(E43=FALSE,VLOOKUP($C43,InvrtChgrs!$A$2:$X$30,18,FALSE),0) -> 0 | P43: 0 | Q43: 0 | R43: =IF(E43=FALSE,VLOOKUP($C43,InvrtChgrs!$A$2:$X$30,22,FALSE),0) -> 0 | S43: =VLOOKUP($C43,InvrtChgrs!$A$2:$X$30,23,FALSE) -> 0
B44: L4 | C44: None | E44: FALSE | G44: =VLOOKUP($C44,InvrtChgrs!$A$2:$X$30,13,FALSE) -> 0 | H44: =VLOOKUP($C44,InvrtChgrs!$A$2:$X$30,5,FALSE) -> 0 | I44: =VLOOKUP($C44,InvrtChgrs!$A$2:$X$30,2,FALSE) -> 0 | J44: =VLOOKUP($C44,InvrtChgrs!$A$2:$X$30,4,FALSE) -> 0 | K44: =VLOOKUP($C44,InvrtChgrs!$A$2:$X$30,3,FALSE) -> 0 | L44: =VLOOKUP($C44,InvrtChgrs!$A$2:$X$30,7,FALSE) -> 0 | M44: =VLOOKUP($C44,InvrtChgrs!$A$2:$X$30,6,FALSE) -> 0 | N44: =IF(E44=FALSE,(VLOOKUP($C44,InvrtChgrs!$A$2:$X$30,17,FALSE)),0) -> 0 | O44: =IF(E44=FALSE,VLOOKUP($C44,InvrtChgrs!$A$2:$X$30,18,FALSE),0) -> 0 | P44: 0 | Q44: 0 | R44: =IF(E44=FALSE,VLOOKUP($C44,InvrtChgrs!$A$2:$X$30,22,FALSE),0) -> 0 | S44: =VLOOKUP($C44,InvrtChgrs!$A$2:$X$30,23,FALSE) -> 0
B46: Alternator(s) | E46: Weight (lbs) | F46: Max. Voltage Output (Vdc) | G46: Max. Amperage Output (Adc) | H46: Turn On speed @ shaft (rpm) | I46: Alternator #1 Inhibit Enable (pack software calibration) (% SOC) | K46: Alternator # 1Inhibit Exit (pack software calibration) (% SOC) | M46: Alternator # 2 Inhibit Enable (PLC Setting) (% SOC) | O46: Alternator # 2 Inhibit Exit (PLC Setting) (% SOC)
B47: Alternators Type
B48: Alt # 1 | C48: 55i-190ext-56J | E48: =VLOOKUP($C48,Alternators!$A$4:$H$19,2,FALSE) -> 35 | F48: =VLOOKUP($C48,Alternators!$A$4:$H$19,3,FALSE) -> 58 | G48: =IF(SUM(VLOOKUP($C48,Alternators!$A$4:$H$19,4,FALSE)+G49,O41:O44)>B30,"Deactivated",VLOOKUP($C48,Alternators!$A$4:$H$19,4,FALSE)) -> Deactivated | H48: =VLOOKUP($C48,Alternators!$A$4:$H$19,5,FALSE) -> 2732 | I48: =VLOOKUP($C48,Alternators!$A$4:$H$19,7,FALSE) -> 0.95 | K48: =VLOOKUP($C48,Alternators!$A$4:$H$19,8,FALSE) -> 0.89 | M48: -- | O48: --
B49: Alt # 2 | C49: None | E49: =VLOOKUP($C49,Alternators!$A$4:$H$19,2,FALSE) -> 0 | F49: =VLOOKUP($C49,Alternators!$A$4:$H$19,3,FALSE) -> 0 | G49: =VLOOKUP($C49,Alternators!$A$4:$H$19,4,FALSE) -> 0 | H49: =VLOOKUP($C49,Alternators!$A$4:$H$19,5,FALSE) -> 0 | I49: -- | K49: -- | M49: =IF(C49="None",0,0.89) -> 0 | O49: =IF(C49="None",0,0.78) -> 0
B52: DC / DC Converter(s)
C53: Converter Model | E53: Weight (lbs) | F53: Output Voltage (Vdc) | G53: Output Current (Adc) | H53: Input DC Current Nom. (Adc) | I53: Peak Output Current (Adc) | J53: DC Bus Transient Clamping (J)
B54: Unit #1 | C54: Sensata 51DC12-125 | E54: =VLOOKUP($C54,Converters!$A$3:$Q$21,6,FALSE) -> 42 | F54: =VLOOKUP($C54,Converters!$A$3:$Q$21,3,FALSE) -> 14.4 | G54: =VLOOKUP($C54,Converters!$A$3:$Q$21,2,FALSE) -> 125 | H54: =VLOOKUP($C54,Converters!$A$3:$Q$21,4,FALSE) -> 46 | I54: =VLOOKUP($C54,Converters!$A$3:$Q$21,5,FALSE) -> 215 | J54: =VLOOKUP($C54,Converters!$A$3:$Q$21,14,FALSE) -> 2100
B55: Unit #2 | C55: None | E55: =VLOOKUP($C55,Converters!$A$3:$Q$21,6,FALSE) -> 0 | F55: =VLOOKUP($C55,Converters!$A$3:$Q$21,3,FALSE) -> 0 | G55: =VLOOKUP($C55,Converters!$A$3:$Q$21,2,FALSE) -> 0 | H55: =VLOOKUP($C55,Converters!$A$3:$Q$21,4,FALSE) -> 0 | I55: =VLOOKUP($C55,Converters!$A$3:$Q$21,5,FALSE) -> 0 | J55: =VLOOKUP($C55,Converters!$A$3:$Q$21,14,FALSE) -> 0
B56: Unit #3 | C56: None | E56: =VLOOKUP($C56,Converters!$A$3:$Q$21,6,FALSE) -> 0 | F56: =VLOOKUP($C56,Converters!$A$3:$Q$21,3,FALSE) -> 0 | G56: =VLOOKUP($C56,Converters!$A$3:$Q$21,2,FALSE) -> 0 | H56: =VLOOKUP($C56,Converters!$A$3:$Q$21,4,FALSE) -> 0 | I56: =VLOOKUP($C56,Converters!$A$3:$Q$21,5,FALSE) -> 0 | J56: =VLOOKUP($C56,Converters!$A$3:$Q$21,14,FALSE) -> 0
C59: ="L1: " & C41 & " " & H41 & "Vac" -> L1: Sensata 51NP36HRQ-099 120Vac | E59: (AAC) | F59: Duty Cycle (%) | H59: ="L2: " & C42 & " " & H42 & "Vac" -> L2: Sensata 51NP36HRQ-099 120Vac | J59: (AAC) | K59: Duty Cycle (%) | M59: ="L3: " & C43 & " " & H43 & "Vac" -> L3: None 0Vac | O59: (AAC) | P59: Duty Cycle (%)
C60: 1500 BTU A/C | E60: 14 | F60: 0.3 | H60: 1500 BTU A/C | J60: 14 | K60: 0.3
H61: Water heater | J61: 12 | K61: 0.3
C62: Fridge | E62: 2 | F62: 0.4 | H62: Cook top | J62: 12 | K62: 0.05
C63: AV | E63: 8 | F63: 0.3 | H63: Microwave | J63: 8 | K63: 0.02
C68: Max Current Draw | E68: =SUM(E60:E67) -> 24 | F68: A | H68: Max Current Draw | J68: =SUM(J60:J67) -> 46 | K68: A | M68: Max Current Draw | O68: =SUM(O60:O67) -> 0 | P68: A
C69: Max Watt's | E69: =E68*120 -> 2880 | F69: Watts | G69: =IF(($E$69>4000),"Need Load Mgmt",IF(($E$69>$I$41),"Warning","Good")) -> Good | H69: Max Watt's | J69: =J68*120 -> 5520 | K69: Watts | L69: =IF(($J$69>4000),"Need Load Mgmt",IF(($J$69>$I$42),"Warning","Good")) -> Need Load Mgmt | M69: Max Watt's | O69: =O68*120 -> 0 | P69: Watts | Q69: =IF(($O$69>4000),"Need Load Mgmt",IF(($O$69>$I$43),"Warning","Good")) -> Good
C70: Total W/Hr | E70: =((E60*F60)+(E61*F61)+(E62*F62)+(E63*F63)+(E64*F64)+(E65*F65)+(E66*F66)+(E67*F67))*120 -> 888 | F70: Avg Watts | H70: Total W/Hr | J70: =((J60*K60)+(J61*K61)+(J62*K62)+(J63*K63)+(J64*K64)+(J65*K65)+(J66*K66)+(J67*K67))*120 -> 1027.2 | K70: Avg Watts | M70: Total W/Hr | O70: =((O60*P60)+(O61*P61)+(O62*P62)+(O63*P63)+(O64*P64)+(O65*P65)+(O66*P66)+(O67*P67))*120 -> 0 | P70: Avg Watts
C73: ="Unit #1: " & C54 & " " & F54 & "Vdc" -> Unit #1: Sensata 51DC12-125 14.4Vdc | E73: (Adc) | F73: Duty Cycle (%) | H73: ="Unit #2: " & C55 & " " & F55 & "Vdc" -> Unit #2: None 0Vdc | J73: (Adc) | K73: Duty Cycle (%) | M73: ="Unit #3: " & C56 & " " & F56 & "Vdc" -> Unit #3: None 0Vdc | O73: (Adc) | P73: Duty Cycle (%)
C74: Lights | E74: 30 | F74: 0.5
C75: Furnance | E75: 5 | F75: 0.3
C76: slides | E76: 13 | F76: 0.02
C82: Max. Current Draw | E82: =SUM(E74:E81) -> 48 | F82: A | H82: Max. Current Draw | J82: =SUM(J74:J81) -> 0 | K82: A | M82: Max. Current Draw | O82: =SUM(O74:O81) -> 0 | P82: A
C83: Max. Watt's | E83: =E82*F54 -> 691.2 | F83: Watts | H83: Max. Watt's | J83: =J82*F55 -> 0 | K83: Watts | M83: Max. Watt's | O83: =O82*F56 -> 0 | P83: Watts
C84: Total W/hr | E84: =IF(C54="None",0,(($E$74*$F$74)+($E$75*$F$75)+($E$76*$F$76)+($E$77*$F$77)+(E78*F78)+(E79*F79)+(E80*F80)+(E81*F81))*F54) -> 241.344 | F84: Avg Watts | H84: Total W/hr | J84: =IF(C55="None",0,(($J$74*$K$74)+($J$75*$K$75)+($J$76*$K$76)+($J$77*$K$77)+(J78*K78)+(J79*K79)+(J80*K80)+(J81*K81))*F55) -> 0 | K84: Avg Watts | M84: Total W/hr | O84: =IF(C56="None",0,(($O$74*$P$74)+($O$75*$P$75)+($O$76*$P$76)+($O$77*$P$77)+(O78*P78)+(O79*P79)+(O80*P80)+(O81*P81))*F56) -> 0 | P84: Avg Watts

Sheet Pack (hidden)
Q1: Inverter / Chargers
B2: Volta Pack Capabilities | L2: Volta Pack | Q2: None
L3: Volta Junction Box | Q3: Sensata 51NP36HRQ-099
B4: Valid Pack Voltage Range1 | Q4: Sensata 51NP27
B5: Min. Pack V | C5: Max. Pack V
B6: =ROUND(MIN('SOC vs OCV'!H6:H26),2) & " V" -> 45.39 V | C6: =ROUND(MAX('SOC vs OCV'!H6:H26),2) & " V" -> 58.6 V
B8: Normal Operation Voltage Range2 | Q8: Alternators
B9: Min. Pack V | C9: Max. Pack V | J9: Volta Junction Box Capabilities | Q9: None
B10: =ROUND(MIN('SOC vs OCV'!H6:H24),2) & " V" -> 48.83 V | C10: =ROUND(MAX('SOC vs OCV'!H6:H24),2) & " V" -> 58.6 V | J10: Weight | K10: xx | L10: lbs | Q10: 55i-190ext-56J
J11: Volta Junction Box Contactor Rating Continuous (A) | Q11: 160HP-RAM64-58
B12: Nominal Battery Voltage | J12: =600 -> 600 | K12: A
B13: =51 & " V" -> 51 V
J14: Service Disconnect Switch Continuous Rating (A)
B15: Nominal Module Capacity @ 300C | J15: 400 | K15: A | Q15: Converters
B16: 58 Ah | Q16: None
Q17: Sensata 51DC12-125
B18: Operational Module Capacity (1C) @ 300C3 | Q18: Sensata 51DC24-110
B19: =ROUND(2*'VOLTA_29Ah_SOCvsOCV 30degC'!C5,2) & " Ah" -> 54.22 Ah
B21: Maximum Module Energy Capacity
B22: =ROUND((14*'VOLTA_29Ah_SOCvsOCV 30degC'!D55)*58,2) -> 3369.8 | C22: Whr's | H22: 1: 0% SOC to 100% SOC | Q22: Heating Solutions
H23: 2: 10% SOC to 100% SOC | Q23: None
B24: Usable Maximum Module Energy4 | H24: 3: 1hr constant 58A discharge rate | Q24: Wintry Option (0 Degree C)
B25: =ROUND((14*'VOLTA_29Ah_SOCvsOCV 30degC'!D55)*58,2)*0.9 -> 3032.82 | C25: Whr's | H25: 4: Volta System prevents use below 10% SOC | Q25: Frigid Option (-10 Degree C)
H26: 5: > 80% Effective capacity remaining | Q26: Arctic Option (-30 Degree C)
B27: Pack Cycle Life 100% DoD5 | H27: 6: Warnings will be generated and expected cell life will be degraded.
B28: 1500 | H28: 7: No warnings will be generated and Cell life expectations is not degraded
H29: 8: Temperature will generate warnings
B30: Pack Cycle Life 80% DoD5
B31: 2000
B33: Module Normal Discharge Rate Continuous7
B34: =1.5*58 -> 87 | C34: A
B36: Module Normal Discharge Rate Continuous7
B37: =(1.5*58)*51 & " Watts" -> 4437 Watts
B39: Module Max. Discharge Rate Continuous6
B40: =2*58 & " A" -> 116 A
B42: Module Max. Discharge Rate Continuous7
B43: =116*51 & " Watts" -> 5916 Watts
B45: Module Max. Charge Rate6
B46: =58 -> 58 | C46: A | D46: =58 * 58.2 & " Watts" -> 3375.6 Watts
B48: Module Normal Charge Rate7
B49: =58 * 0.75 -> 43.5 | C49: A | D49: =43.5 * 58.2 & " Watts" -> 2531.7 Watts
B51: Volta Pack Fuse Rating
B52: =350 -> 350 | C52: A
B54: Volta Pack Contactor Rating Continuous
B55: =400 -> 400 | C55: A
B57: Module Charging Operating Temperatures8
B58: Min. | C58: Max.
B59: 50C | C59: 450C
B61: Module Discharge Operating Temperatures8
B62: Min. | C62: Max.
B63: -200C | C63: 550C
B65: Pack Temp Range with full operation & no heaters
B66: Discharge
B67: Min. | C67: Max.
B68: -200C | C68: 550C
B69: Charging
B70: Min. | C70: Max.
B71: 50C | C71: 450C
B73: Pack Temp Range with full operation & 1x heaters
B74: Discharge
B75: Min.
B76: -250C
B77: Charging
B78: Min.
B79: 00C
B81: Pack Temp Range with full operation and 2x heaters, 1x Heater Wrap
B82: Discharge
B83: Min.
B84: -350C
B85: Charging
B86: Min.
B87: -300C
B89: Long Term Storage Temperature (12 Months)
B90: Min. | C90: Max.
B91: -50C | C91: 350C
B93: Short Term Storage Temperature (3 Months)
B94: Min. | C94: Max.
B95: -200C | C95: 450C
B97: Module Weight
B98: 18 | C98: kg
B99: =ROUND(CONVERT(B98,"kg","lbm"),2) -> 39.68 | C99: lbs
B101: Dimensions
B102: Height (mm) | C102: Width (mm) | D102: Length (mm)
B103: 248 | C103: 168 | D103: 200
B105: Height (in) | C105: Width (in) | D105: Length (in)
B106: =ROUND(CONVERT(B103,"mm","in"),2) -> 9.76 | C106: =ROUND(CONVERT(C103,"mm","in"),2) -> 6.61 | D106: =ROUND(CONVERT(D103,"mm","in"),2) -> 7.87
B108: Module Part Number
B109: 58 Ah | C109: PCM-051058-A03
B111: Pack Weight | C111: (everything but modules)
B112: 2 Module | C112: xx | D112: lbs
B113: 4 Module | C113: xx | D113: lbs
B114: 6 Module | C114: xx | D114: lbs
B115: 8 Module | C115: xx | D115: lbs
B117: Sensata DC Connection Capability
B118: Current Rating
B119: 225 | C119: A

Sheet InvrtChgrs (hidden)
B1: Inverter | O1: Battery Charger | V1: Bypass Circuit | W1: Input Transient Clamping Circuit
B2: Output Power Cont. (W) | C2: Output Peak Power (W) | D2: Output Current (Amps AC Cont) | E2: Output AC Voltage (VAC) | F2: Peak DC Input Current (Amps DC) | G2: Max. Normal DC Input Current (Amps DC) | H2: Input DC Voltage Range (V) | J2: Operating Temperature Range | L2: Dimensions | M2: Weight (lbs) | N2: Inverter Efficiency | O2: AC Input Voltage Range (VAC) | Q2: Max. AC Input Current (Amps AC) | R2: Output Current (Amps DC) | S2: Output Voltage (Voltage DC) | T2: Charger Enable On (% SOC) | U2: Charger Enable Off (% SOC) | V2: Bypass Relay Capability (Amps AC) | W2: Input Transient Clamping Capabilities (Joules) | X2: Overvoltage Trip Point (V) | Y2: Front End Bus Capacitance (F)
A3: Sensata 51NP36HRQ-099 | B3: 3600 | C3: 6000 | D3: 30 | E3: 120 | F3: 91 | G3: 77 | H3: 44.3 | I3: 60 | J3: -200C | K3: 650C | L3: 13.8" x 17.1" x 8" | M3: 68 | N3: 0.91 | O3: 95 | P3: 135 | Q3: 30 | R3: 50 | S3: 58.2 | T3: 92 | U3: 96 | V3: 30 | W3: 2100 | X3: 65 | Y3: 14,400uF
H4: Min. | I4: Max. | J4: Min. | K4: Max. | O4: min. | P4: max. | T4: Software Cal | U4: Software Cal
A5: None

Sheet Converters (hidden)
B1: Converters
B2: Output Current (Amps DC Cont) | C2: Typical Output Voltage (± 0.1 V) (Vdc) | D2: Input DC Current Nom. (Adc) | E2: Peak Output Current (Adc) | F2: Weight (lbs) | G2: Dimensions | H2: Input Voltage Range DC (Vdc) | J2: Output Voltage Range DC (Vdc) | L2: DC Surge Voltage (Vdc) | M2: Efficiency (%) | N2: Input Transient Clamping (J) | O2: Over-Voltage Trip Point (V) | P2: Front End Capacitance (F) | Q2: Note:
A3: Sensata 51DC12-125 | B3: 125 | C3: 14.4 | D3: 46 | E3: 215 | F3: 42 | G3: 13.4" x 14.5" x 5.7" | H3: 44.3 | I3: 58 | J3: 12.6 | K3: 14.4 | L3: 63 | M3: 0.9 | N3: 2100 | O3: 65 | P3: 14,400uF | Q3: NP Cube
H4: Min. | I4: Max. | J4: Min. | K4: Max. | M4: @ 50% Load
A5: None
A6: Sensata 51DC24-110 | B6: 110 | C6: 28.8 | D6: 90 | E6: 200 | F6: 68 | G6: 13.8" x 17.1" x 8.0" | H6: 44.3 | I6: 58 | J6: 25.2 | K6: 28.8 | M6: 0.91 | N6: 2100 | O6: 65 | P6: 14,400uF | Q6: NP Large
H7: Min. | I7: Max. | J7: Min. | K7: Max. | M7: @ 40% Load

Sheet Alternators (hidden)
B1: Alternators
B3: Weight (lbs) | C3: Max. Voltage Output (Vdc) | D3: Max. Amperage Output (Adc) | E3: Turn On speed @ shaft (rpm) | F3: Horsepower Required @ 191A (HP) | G3: Alternator Inhibit Enable (pack software calibration) (% SOC) | H3: Alternator Inhibit Exit (pack software calibration) (% SOC)
A4: 55i-190ext-56J | B4: 35 | C4: 58 | D4: 191 | E4: 2732 | F4: 19.76 | G4: 0.95 | H4: 0.89
A5: 160HP-RAM64-58 | C5: 58 | D5: 50 | E5: 3700 | G5: 0.95 | H5: 0.89
A6: None

Sheet SOC vs OCV (hidden)
A4: 30°C | L4: Pack Level OCV
A5: Discharge Capacity (Ah) | B5: SOC (%) | C5: OCV (V) | D5: SOC (%) Interpolated | E5: OCV (V) Interpolated | G5: SOC (%) | H5: Pack OCV (V) | K5: SOC (%) | L5: SOC (%) | M5: Cell OCV (V) Interpolated | N5: Cell OCV (V) Interpolated | O5: Pack OCV (V) Interpolated | P5: Pack OCV (V) Interpolated
A6: 0 | B6: 100 | C6: 4.1861 | D6: 100 | E6: 4.186 | G6: 100 | H6: =E6*14 -> 58.604 | K6: =100 -> 100 | L6: 1.05 | P6: =58.8&"V" -> 58.8V
A7: 1.25 | B7: 94.79166667 | C7: 4.1184 | D7: 95 | E7: =C7+(C6-C7)*((D7-B7)/(B6-B7)) -> 4.121108 | G7: 95 | H7: =E7*14 -> 57.695512 | K7: 99 | L7: =K6 & "%" -> 100% | M7: =C6 -> 4.1861 | N7: =ROUND(M7,3)&"V" -> 4.186V | O7: =M7*14 -> 58.6054 | P7: =ROUND(O7,2)&"V" -> 58.61V
A8: 2.5 | B8: 89.58333333 | C8: 4.0554 | D8: 90 | E8: 4.06044 | G8: 90 | H8: 56.84616 | K8: 98 | L8: 99% | M8: =$C$7+($C$6-$C$7)*((K7-$B$7)/($B$6-$B$7)) -> 4.1731016 | N8: =ROUND(M8,3)&"V" -> 4.173V | O8: 58.4234224 | P8: =ROUND(O8,2)&"V" -> 58.42V
A9: 3.75 | B9: 84.375 | C9: 3.996 | D9: 85 | E9: 4.003128 | G9: 85 | H9: 56.043792 | K9: 97 | L9: 98% | M9: =$C$7+($C$6-$C$7)*((K8-$B$7)/($B$6-$B$7)) -> 4.1601032 | N9: 4.16V | O9: 58.2414448 | P9: 58.24V | Q9: → | R9: Auto Shut-Down Generator @ ~ ≥ 58.24V
A10: 5 | B10: 79.16666667 | C10: 3.9395 | D10: 80 | E10: 3.94854 | G10: 80 | H10: 55.27956 | K10: 96 | L10: 97% | M10: =$C$7+($C$6-$C$7)*((K9-$B$7)/($B$6-$B$7)) -> 4.1471048 | N10: 4.147V | O10: 58.0594672 | P10: 58.06V | Q10: → | R10: Alternator(s) maximum Voltage output @ ~ 58.0V
A11: 6.25 | B11: 73.95833333 | C11: 3.8866 | D11: 75 | E11: 3.89718 | G11: 75 | H11: 54.56052 | K11: 95 | L11: 96% | M11: =$C$7+($C$6-$C$7)*((K10-$B$7)/($B$6-$B$7)) -> 4.1341064 | N11: 4.134V | O11: 57.8774896 | P11: 57.88V | Q11: → | R11: Disable Chargers @ ~ 96%
A12: 7.5 | B12: 68.75 | C12: 3.8327 | D12: 70 | E12: 3.845636 | G12: 70 | H12: 53.838904 | K12: 94 | L12: 95% | M12: =$C$7+($C$6-$C$7)*((K11-$B$7)/($B$6-$B$7)) -> 4.121108 | N12: 4.121V | O12: 57.695512 | P12: 57.7V
A13: 8.75 | B13: 63.54166667 | C13: 3.7773 | D13: 65 | E13: 3.792812 | G13: 65 | H13: 53.099368 | K13: 93 | L13: 94% | M13: =$C$8+($C$7-$C$8)*(($K12-$B$8)/($B$8-$B$9)) -> 4.108824 | N13: 4.109V | O13: 57.523536 | P13: 57.52V | Q13: → | R13: *(1) Prevent Alternator #1 Charging @ ~ 95.5%
A14: 10 | B14: 58.33333333 | C14: 3.7322 | D14: 60 | E14: 3.746632 | G14: 60 | H14: 52.452848 | K14: 92 | L14: 93% | M14: =$C$8+($C$7-$C$8)*(($K13-$B$8)/($B$8-$B$9)) -> 4.096728 | N14: 4.097V | O14: 57.354192 | P14: 57.35V
A15: 11.25 | B15: 53.125 | C15: 3.6992 | D15: 55 | E15: 3.71108 | G15: 55 | H15: 51.95512 | K15: 91 | L15: 92% | M15: =$C$8+($C$7-$C$8)*(($K14-$B$8)/($B$8-$B$9)) -> 4.084632 | N15: 4.085V | O15: 57.184848 | P15: 57.18V | Q15: → | R15: Enable Chargers @ ~ 92%
A16: 12.5 | B16: 47.91666667 | C16: 3.6742 | D16: 50 | E16: 3.6842 | G16: 50 | H16: 51.5788 | K16: 90 | L16: 91% | M16: =$C$8+($C$7-$C$8)*(($K15-$B$8)/($B$8-$B$9)) -> 4.072536 | N16: 4.073V | O16: 57.015504 | P16: 57.02V
A17: 13.5 | B17: 43.75 | C17: 3.6546 | D17: 45 | E17: 3.66048 | G17: 45 | H17: 51.24672 | K17: 89 | L17: 90% | M17: =$C$8+($C$7-$C$8)*(($K16-$B$8)/($B$8-$B$9)) -> 4.06044 | N17: 4.06V | O17: 56.84616 | P17: 56.85V | Q17: → | R17: Re-Enable Alternator #1 Charging @ ~ 90.5%
A18: 14.75 | B18: 38.54166667 | C18: 3.6387 | D18: 40 | E18: 3.643152 | G18: 40 | H18: 51.004128 | K18: 88 | L18: 89% | M18: =$C$9+($C$8-$C$9)*(($K17-$B$9)/($B$9-$B$10)) -> 4.0487472 | N18: 4.049V | O18: 56.6824608 | P18: 56.68V | Q18: → | R18: Prevent Alternator #2 Charging @ ~ ≥ 56.65V
A19: 16 | B19: 33.33333333 | C19: 3.6222 | D19: 35 | E19: 3.62748 | G19: 35 | H19: 50.78472 | K19: 87 | L19: 88% | M19: =$C$9+($C$8-$C$9)*(($K18-$B$9)/($B$9-$B$10)) -> 4.0373424 | N19: 4.037V | O19: 56.5227936 | P19: 56.52V
A20: 17.25 | B20: 28.125 | C20: 3.5944 | D20: 30 | E20: 3.604408 | G20: 30 | H20: 50.461712 | K20: 86 | L20: 87% | M20: =$C$9+($C$8-$C$9)*(($K19-$B$9)/($B$9-$B$10)) -> 4.0259376 | N20: 4.026V | O20: 56.3631264 | P20: 56.36V
A21: 18.5 | B21: 22.91666667 | C21: 3.5673 | D21: 25 | E21: 3.57814 | G21: 25 | H21: 50.09396 | K21: 85 | L21: 86% | M21: =$C$9+($C$8-$C$9)*(($K20-$B$9)/($B$9-$B$10)) -> 4.0145328 | N21: 4.015V | O21: 56.2034592 | P21: 56.2V
A22: 19.75 | B22: 17.70833333 | C22: 3.5388 | D22: 20 | E22: 3.55134 | G22: 20 | H22: 49.71876 | K22: 84 | L22: 85% | M22: =$C$9+($C$8-$C$9)*(($K21-$B$9)/($B$9-$B$10)) -> 4.003128 | N22: 4.003V | O22: 56.043792 | P22: 56.04V
A23: 21 | B23: 12.5 | C23: 3.5039 | D23: 15 | E23: 3.520652 | G23: 15 | H23: 49.289128 | K23: 83 | L23: 84% | M23: =$C$10+($C$9-$C$10)*(($K22-$B$10)/($B$10-$B$11)) -> 3.991932 | N23: 3.992V | O23: 55.887048 | P23: 55.89V
A24: 22.25 | B24: 7.291666667 | C24: 3.4706 | D24: 10 | E24: 3.487916 | G24: 10 | H24: 48.830824 | K24: 82 | L24: 83% | M24: =$C$10+($C$9-$C$10)*(($K23-$B$10)/($B$10-$B$11)) -> 3.981084 | N24: 3.981V | O24: 55.735176 | P24: 55.74V
A25: 23.5 | B25: 2.083333333 | C25: 3.38 | D25: 5 | E25: 3.430736 | G25: 5 | H25: 48.030304 | K25: 81 | L25: 82% | M25: =$C$10+($C$9-$C$10)*(($K24-$B$10)/($B$10-$B$11)) -> 3.970236 | N25: 3.97V | O25: 55.583304 | P25: 55.58V
A26: 24 | B26: 0 | C26: 3.2415 | D26: 0 | E26: 3.242 | G26: 0 | H26: =E26*14 -> 45.388 | K26: 80 | L26: 81% | M26: =$C$10+($C$9-$C$10)*(($K25-$B$10)/($B$10-$B$11)) -> 3.959388 | N26: 3.959V | O26: 55.431432 | P26: 55.43V
K27: 79 | L27: 80% | M27: =$C$10+($C$9-$C$10)*(($K26-$B$10)/($B$10-$B$11)) -> 3.94854 | N27: 3.949V | O27: 55.27956 | P27: 55.28V
K28: 78 | L28: 79% | M28: =$C$11+($C$10-$C$11)*(($K27-$B$11)/($B$11-$B$12)) -> 3.9378072 | N28: 3.938V | O28: 55.1293008 | P28: 55.13V
K29: 77 | L29: 78% | M29: =$C$11+($C$10-$C$11)*(($K28-$B$11)/($B$11-$B$12)) -> 3.9276504 | N29: 3.928V | O29: 54.9871056 | P29: 54.99V | Q29: → | R29: *(2)Re-Enable Alternator #2 Charging @ ~ ≤ 55.0V
K30: 76 | L30: 77% | M30: =$C$11+($C$10-$C$11)*(($K29-$B$11)/($B$11-$B$12)) -> 3.9174936 | N30: 3.917V | O30: 54.8449104 | P30: 54.84V
K31: 75 | L31: 76% | M31: =$C$11+($C$10-$C$11)*(($K30-$B$11)/($B$11-$B$12)) -> 3.9073368 | N31: 3.907V | O31: 54.7027152 | P31: 54.7V
K32: 74 | L32: 75% | M32: =$C$11+($C$10-$C$11)*(($K31-$B$11)/($B$11-$B$12)) -> 3.89718 | N32: 3.897V | O32: 54.56052 | P32: 54.56V
K33: 73 | L33: 74% | M33: =$C$12+($C$11-$C$12)*(($K32-$B$12)/($B$12-$B$13)) -> 3.8870312 | N33: 3.887V | O33: 54.4184368 | P33: 54.42V
K34: 72 | L34: 73% | M34: =$C$12+($C$11-$C$12)*(($K33-$B$12)/($B$12-$B$13)) -> 3.8766824 | N34: 3.877V | O34: 54.2735536 | P34: 54.27V
K35: 71 | L35: 72% | M35: =$C$12+($C$11-$C$12)*(($K34-$B$12)/($B$12-$B$13)) -> 3.8663336 | N35: 3.866V | O35: 54.1286704 | P35: 54.13V
K36: 70 | L36: 71% | M36: =$C$12+($C$11-$C$12)*(($K35-$B$12)/($B$12-$B$13)) -> 3.8559848 | N36: 3.856V | O36: 53.9837872 | P36: 53.98V
K37: 69 | L37: 70% | M37: =$C$12+($C$11-$C$12)*(($K36-$B$12)/($B$12-$B$13)) -> 3.845636 | N37: 3.846V | O37: 53.838904 | P37: 53.84V
K38: 68 | L38: 69% | M38: =$C$13+($C$12-$C$13)*(($K37-$B$13)/($B$13-$B$14)) -> 3.8353592 | N38: 3.835V | O38: 53.6950288 | P38: 53.7V
K39: 67 | L39: =K38 & "%" -> 68% | M39: =$C$13+($C$12-$C$13)*(($K38-$B$13)/($B$13-$B$14)) -> 3.8247224 | N39: 3.825V | O39: =M39*14 -> 53.5461136 | P39: 53.55V | R39: Confidential and Proprietary
K40: 66 | L40: 67% | M40: =$C$13+($C$12-$C$13)*(($K39-$B$13)/($B$13-$B$14)) -> 3.8140856 | N40: 3.814V | O40: 53.3971984 | P40: 53.4V
K41: 65 | L41: 66% | M41: =$C$13+($C$12-$C$13)*(($K40-$B$13)/($B$13-$B$14)) -> 3.8034488 | N41: 3.803V | O41: 53.2482832 | P41: 53.25V
K42: 64 | L42: 65% | M42: =$C$13+($C$12-$C$13)*(($K41-$B$13)/($B$13-$B$14)) -> 3.792812 | N42: 3.793V | O42: 53.099368 | P42: 53.1V
K43: 63 | L43: 64% | M43: =$C$14+($C$13-$C$14)*(($K42-$B$14)/($B$14-$B$15)) -> 3.7812688 | N43: 3.781V | O43: 52.9377632 | P43: 52.94V
K44: 62 | L44: 63% | M44: =$C$14+($C$13-$C$14)*(($K43-$B$14)/($B$14-$B$15)) -> 3.7726096 | N44: 3.773V | O44: 52.8165344 | P44: 52.82V
K45: 61 | L45: 62% | M45: =$C$14+($C$13-$C$14)*(($K44-$B$14)/($B$14-$B$15)) -> 3.7639504 | N45: 3.764V | O45: 52.6953056 | P45: 52.7V
K46: 60 | L46: 61% | M46: =$C$14+($C$13-$C$14)*(($K45-$B$14)/($B$14-$B$15)) -> 3.7552912 | N46: 3.755V | O46: 52.5740768 | P46: 52.57V
K47: 59 | L47: 60% | M47: =$C$14+($C$13-$C$14)*(($K46-$B$14)/($B$14-$B$15)) -> 3.746632 | N47: 3.747V | O47: 52.452848 | P47: 52.45V
K48: 58 | L48: 59% | M48: =$C$15+($C$14-$C$15)*(($K47-$B$15)/($B$15-$B$16)) -> 3.736424 | N48: 3.736V | O48: 52.309936 | P48: 52.31V
K49: 57 | L49: 58% | M49: 3.730088 | N49: 3.73V | O49: 52.221232 | P49: 52.22V
K50: 56 | L50: 57% | M50: 3.723752 | N50: 3.724V | O50: 52.132528 | P50: 52.13V
K51: 55 | L51: 56% | M51: 3.717416 | N51: 3.717V | O51: 52.043824 | P51: 52.04V
K52: 54 | L52: 55% | M52: 3.71108 | N52: 3.711V | O52: 51.95512 | P52: 51.96V
K53: 53 | L53: 54% | M53: 3.704744 | N53: 3.705V | O53: 51.866416 | P53: 51.87V
K54: 52 | L54: 53% | M54: =$C$17+($C$16-$C$17)*(($K53-$B$17)/($B$17-$B$18)) -> 3.6894096 | N54: 3.689V | O54: 51.6517344 | P54: 51.65V
K55: 51 | L55: 52% | M55: 3.6856464 | N55: 3.686V | O55: 51.5990496 | P55: 51.6V
K56: 50 | L56: 51% | M56: 3.6818832 | N56: 3.682V | O56: 51.5463648 | P56: 51.55V
K57: 49 | L57: 50% | M57: 3.67812 | N57: 3.678V | O57: 51.49368 | P57: 51.49V
K58: 48 | L58: 49% | M58: 3.6743568 | N58: 3.674V | O58: 51.4409952 | P58: 51.44V
K59: 47 | L59: 48% | M59: 3.6705936 | N59: 3.671V | O59: 51.3883104 | P59: 51.39V
K60: 46 | L60: 47% | M60: 3.6668304 | N60: 3.667V | O60: 51.3356256 | P60: 51.34V
K61: 45 | L61: 46% | M61: 3.6630672 | N61: 3.663V | O61: 51.2829408 | P61: 51.28V
K62: 44 | L62: 45% | M62: 3.659304 | N62: 3.659V | O62: 51.230256 | P62: 51.23V
K63: 43 | L63: 44% | M63: 3.6555408 | N63: 3.656V | O63: 51.1775712 | P63: 51.18V
K64: 42 | L64: 43% | M64: =$C$18+($C$17-$C$18)*(($K63-$B$18)/($B$17-$B$18)) -> 3.6523104 | N64: 3.652V | O64: 51.1323456 | P64: 51.13V
K65: 41 | L65: 42% | M65: =$C$18+($C$17-$C$18)*(($K64-$B$18)/($B$17-$B$18)) -> 3.6492576 | N65: 3.649V | O65: 51.0896064 | P65: 51.09V
K66: 40 | L66: 41% | M66: =$C$18+($C$17-$C$18)*(($K65-$B$18)/($B$17-$B$18)) -> 3.6462048 | N66: 3.646V | O66: 51.0468672 | P66: 51.05V
K67: 39 | L67: 40% | M67: =$C$18+($C$17-$C$18)*(($K66-$B$18)/($B$17-$B$18)) -> 3.643152 | N67: 3.643V | O67: 51.004128 | P67: 51V
K68: 38 | L68: 39% | M68: =$C$18+($C$17-$C$18)*(($K67-$B$18)/($B$17-$B$18)) -> 3.6400992 | N68: 3.64V | O68: 50.9613888 | P68: 50.96V
K69: 37 | L69: 38% | M69: =$C$19+($C$18-$C$19)*(($K68-$B$19)/($B$18-$B$19)) -> 3.636984 | N69: 3.637V | O69: 50.917776 | P69: 50.92V
K70: 36 | L70: 37% | M70: =$C$19+($C$18-$C$19)*(($K69-$B$19)/($B$18-$B$19)) -> 3.633816 | N70: 3.634V | O70: 50.873424 | P70: 50.87V
K71: 35 | L71: =K70 & "%" -> 36% | M71: =$C$19+($C$18-$C$19)*(($K70-$B$19)/($B$18-$B$19)) -> 3.630648 | N71: 3.631V | O71: =M71*14 -> 50.829072 | P71: 50.83V
K72: 34 | L72: 35% | M72: =$C$19+($C$18-$C$19)*(($K71-$B$19)/($B$18-$B$19)) -> 3.62748 | N72: =ROUND(M72,3)&"V" -> 3.627V | O72: 50.78472 | P72: =ROUND(O72,2)&"V" -> 50.78V
K73: 33 | L73: 34% | M73: =$C$19+($C$18-$C$19)*(($K72-$B$19)/($B$18-$B$19)) -> 3.624312 | N73: 3.624V | O73: 50.740368 | P73: 50.74V
K74: 32 | L74: 33% | M74: =$C$20+($C$19-$C$20)*(($K73-$B$20)/($B$19-$B$20)) -> 3.6204208 | N74: 3.62V | O74: 50.6858912 | P74: 50.69V
K75: 31 | L75: 32% | M75: =$C$20+($C$19-$C$20)*(($K74-$B$20)/($B$19-$B$20)) -> 3.6150832 | N75: 3.615V | O75: 50.6111648 | P75: 50.61V
K76: 30 | L76: 31% | M76: =$C$20+($C$19-$C$20)*(($K75-$B$20)/($B$19-$B$20)) -> 3.6097456 | N76: 3.61V | O76: 50.5364384 | P76: 50.54V
K77: 29 | L77: 30% | M77: =$C$20+($C$19-$C$20)*(($K76-$B$20)/($B$19-$B$20)) -> 3.604408 | N77: 3.604V | O77: 50.461712 | P77: 50.46V
K78: 28 | L78: 29% | M78: =$C$20+($C$19-$C$20)*(($K77-$B$20)/($B$19-$B$20)) -> 3.5990704 | N78: 3.599V | O78: =M78*14 -> 50.3869856 | P78: 50.39V
K79: 27 | L79: 28% | M79: =$C$21+($C$20-$C$21)*(($K78-$B$21)/($B$20-$B$21)) -> 3.5937496 | N79: 3.594V | O79: 50.3124944 | P79: 50.31V
K80: 26 | L80: 27% | M80: 3.5885464 | N80: 3.589V | O80: 50.2396496 | P80: 50.24V
K81: 25 | L81: 26% | M81: 3.5833432 | N81: 3.583V | O81: 50.1668048 | P81: 50.17V
K82: 24 | L82: 25% | M82: 3.57814 | N82: 3.578V | O82: 50.09396 | P82: 50.09V
K83: 23 | L83: 24% | M83: 3.5729368 | N83: 3.573V | O83: 50.0211152 | P83: 50.02V
K84: 22 | L84: 23% | M84: 3.5677336 | N84: 3.568V | O84: 49.9482704 | P84: 49.95V
K85: 21 | L85: 22% | M85: =$C$22+($C$21-$C$22)*(($K84-$B$22)/($B$21-$B$22)) -> 3.562284 | N85: 3.562V | O85: 49.871976 | P85: 49.87V
K86: 20 | L86: 21% | M86: =$C$22+($C$21-$C$22)*(($K85-$B$22)/($B$21-$B$22)) -> 3.556812 | N86: 3.557V | O86: 49.795368 | P86: 49.8V
K87: 19 | L87: 20% | M87: =$C$22+($C$21-$C$22)*(($K86-$B$22)/($B$21-$B$22)) -> 3.55134 | N87: 3.551V | O87: 49.71876 | P87: 49.72V | Q87: → | R87: Auto-Start Generator @ ~ ≤ 49.72V
K88: 18 | L88: 19% | M88: =$C$22+($C$21-$C$22)*(($K87-$B$22)/($B$21-$B$22)) -> 3.545868 | N88: 3.546V | O88: 49.642152 | P88: 49.64V | Q88: → | R88: Inverter / Converter Low Battery Hysteresis
K89: 17 | L89: 18% | M89: =$C$22+($C$21-$C$22)*(($K88-$B$22)/($B$21-$B$22)) -> 3.540396 | N89: 3.54V | O89: 49.565544 | P89: 49.57V
K90: 16 | L90: 17% | M90: =$C$23+($C$22-$C$23)*(($K89-$B$23)/($B$22-$B$23)) -> 3.5340536 | N90: 3.534V | O90: 49.4767504 | P90: 49.48V
K91: 15 | L91: 16% | M91: =$C$23+($C$22-$C$23)*(($K90-$B$23)/($B$22-$B$23)) -> 3.5273528 | N91: 3.527V | O91: 49.3829392 | P91: 49.38V
K92: 14 | L92: 15% | M92: =$C$23+($C$22-$C$23)*(($K91-$B$23)/($B$22-$B$23)) -> 3.520652 | N92: 3.521V | O92: 49.289128 | P92: 49.29V
K93: 13 | L93: 14% | M93: =$C$23+($C$22-$C$23)*(($K92-$B$23)/($B$22-$B$23)) -> 3.5139512 | N93: 3.514V | O93: 49.1953168 | P93: 49.2V
K94: 12 | L94: 13% | M94: =$C$23+($C$22-$C$23)*(($K93-$B$23)/($B$22-$B$23)) -> 3.5072504 | N94: 3.507V | O94: 49.1015056 | P94: 49.1V
K95: 11 | L95: 12% | M95: =$C$24+($C$23-$C$24)*(($K94-$B$24)/($B$23-$B$24)) -> 3.5007032 | N95: 3.501V | O95: 49.0098448 | P95: 49.01V
K96: 10 | L96: 11% | M96: =$C$24+($C$23-$C$24)*(($K95-$B$24)/($B$23-$B$24)) -> 3.4943096 | N96: 3.494V | O96: 48.9203344 | P96: 48.92V
K97: 9 | L97: 10% | M97: =$C$24+($C$23-$C$24)*(($K96-$B$24)/($B$23-$B$24)) -> 3.487916 | N97: 3.488V | O97: 48.830824 | P97: 48.83V | Q97: → | R97: BMU Low SOC Contactor Opening ~ 10% SOC [Discharge Only]
K98: 8 | L98: 9% | M98: =$C$24+($C$23-$C$24)*(($K97-$B$24)/($B$23-$B$24)) -> 3.4815224 | N98: 3.482V | O98: 48.7413136 | P98: 48.74V | Q98: → | R98: Inverter / Converter Low Battery Detection
K99: 7 | L99: 8% | M99: =$C$24+($C$23-$C$24)*(($K98-$B$24)/($B$23-$B$24)) -> 3.4751288 | N99: 3.475V | O99: 48.6518032 | P99: 48.65V
K100: 6 | L100: 7% | M100: =$C$25+($C$24-$C$25)*(($K99-$B$25)/($B$24-$B$25)) -> 3.4655264 | N100: 3.466V | O100: 48.5173696 | P100: 48.52V
K101: 5 | L101: 6% | M101: =$C$25+($C$24-$C$25)*(($K100-$B$25)/($B$24-$B$25)) -> 3.4481312 | N101: 3.448V | O101: 48.2738368 | P101: 48.27V
K102: 4 | L102: 5% | M102: =$C$25+($C$24-$C$25)*(($K101-$B$25)/($B$24-$B$25)) -> 3.430736 | N102: 3.431V | O102: 48.030304 | P102: 48.03V
K103: 3 | L103: 4% | M103: =$C$25+($C$24-$C$25)*(($K102-$B$25)/($B$24-$B$25)) -> 3.4133408 | N103: 3.413V | O103: 47.7867712 | P103: 47.79V
K104: 2 | L104: 3% | M104: =$C$25+($C$24-$C$25)*(($K103-$B$25)/($B$24-$B$25)) -> 3.3959456 | N104: 3.396V | O104: 47.5432384 | P104: 47.54V
K105: 1 | L105: 2% | M105: =$C$26+($C$25-$C$26)*(($K104-$B$26)/($B$25-$B$26)) -> 3.37446 | N105: 3.374V | O105: 47.24244 | P105: 47.24V
K106: 0 | L106: 1% | M106: =$C$26+($C$25-$C$26)*(($K105-$B$26)/($B$25-$B$26)) -> 3.30798 | N106: 3.308V | O106: 46.31172 | P106: 46.31V
L107: 0% | M107: =C26 -> 3.2415 | N107: 3.242V | O107: 45.381 | P107: 45.38V | Q107: → | R107: Approximate start of Knee Voltage of Cells
L109: X | P109: 36.0V | Q109: → | R109: Minimum Start-up voltage for BMU : AC Charging Allowed
L111: X | M111: 24 | P111: 28.0V | Q111: → | R111: Pack has reached Critical Low Voltage Point
L112: X | M112: X | P112: X | Q112: → | R112: Cells that have reached 0.5V are now "bad" and will have higher self-discharge
L114: *(1) | P114: Alternator Will normally limit the Voltage to 58V, this limit is a safty limit controlled by PLC.
L115: *(2) | P115: In 2x Alternator applications, there will always be at least 1x Alternator producing current.

Sheet VOLTA_29Ah_SOCvsOCV 30degC (hidden)
B4: Usable SOC | C4: Usable Dcap at 1C (Ah) | D4: 1hr OCV | E4: 1C
B5: 0 | C5: 27.10827684 | D5: 3.426 | E5: 3.009348551
B6: 0.02 | C6: 26.56611131 | D6: 3.439261772 | E6: 3.185574704
B7: 0.04 | C7: 26.02394577 | D7: 3.449374704 | E7: 3.265260865
B8: 0.06 | C8: 25.48178023 | D8: 3.462861064 | E8: 3.308993389
B9: 0.08 | C9: 24.9396147 | D9: 3.479993583 | E9: 3.33987758
B10: 0.1 | C10: 24.39744916 | D10: 3.495316048 | E10: 3.364488785
B11: 0.12 | C11: 23.85528362 | D11: 3.509274623 | E11: 3.385065043
B12: 0.14 | C12: 23.31311809 | D12: 3.522565845 | E12: 3.402735616
B13: 0.16 | C13: 22.77095255 | D13: 3.534308024 | E13: 3.417730927
B14: 0.18 | C14: 22.22878701 | D14: 3.544967646 | E14: 3.431133954
B15: 0.2 | C15: 21.68662148 | D15: 3.555676343 | E15: 3.443839977
B16: 0.22 | C16: 21.14445594 | D16: 3.5666699 | E16: 3.455897183
B17: 0.24 | C17: 20.6022904 | D17: 3.577561621 | E17: 3.467287696
B18: 0.26 | C18: 20.06012486 | D18: 3.588167902 | E18: 3.477463505
B19: 0.28 | C19: 19.51795933 | D19: 3.598166033 | E19: 3.485347238
B20: 0.3 | C20: 18.97579379 | D20: 3.605270881 | E20: 3.492520083
B21: 0.32 | C21: 18.43362825 | D21: 3.611046094 | E21: 3.499388596
B22: 0.34 | C22: 17.89146272 | D22: 3.616383475 | E22: 3.505381445
B23: 0.36 | C23: 17.34929718 | D23: 3.621627507 | E23: 3.512307777
B24: 0.38 | C24: 16.80713164 | D24: 3.626958237 | E24: 3.519063036
B25: 0.4 | C25: 16.26496611 | D25: 3.632537492 | E25: 3.525724366
B26: 0.42 | C26: 15.72280057 | D26: 3.63845284 | E26: 3.532743998
B27: 0.44 | C27: 15.18063503 | D27: 3.644785196 | E27: 3.54006421
B28: 0.46 | C28: 14.6384695 | D28: 3.651615474 | E28: 3.54795395
B29: 0.48 | C29: 14.09630396 | D29: 3.658583166 | E29: 3.556045301
B30: 0.5 | C30: 13.55413842 | D30: 3.666439905 | E30: 3.564830434
B31: 0.52 | C31: 13.01197289 | D31: 3.675742625 | E31: 3.574415262
B32: 0.54 | C32: 12.46980735 | D32: 3.686375495 | E32: 3.584550661
B33: 0.56 | C33: 11.92764181 | D33: 3.698759645 | E33: 3.596092066
B34: 0.58 | C34: 11.38547627 | D34: 3.714020584 | E34: 3.609902661
B35: 0.6 | C35: 10.84331074 | D35: 3.73356479 | E35: 3.62554025
B36: 0.62 | C36: 10.3011452 | D36: 3.755688836 | E36: 3.641263006
B37: 0.64 | C37: 9.758979664 | D37: 3.77572253 | E37: 3.657649702
B38: 0.66 | C38: 9.216814127 | D38: 3.793701077 | E38: 3.674036398
B39: 0.68 | C39: 8.67464859 | D39: 3.811496502 | E39: 3.692162744
B40: 0.7 | C40: 8.132483053 | D40: 3.828861778 | E40: 3.711436151
B41: 0.72 | C41: 7.590317516 | D41: 3.847288575 | E41: 3.730267412
B42: 0.74 | C42: 7.04815198 | D42: 3.86621249 | E42: 3.749574867
B43: 0.76 | C43: 6.505986443 | D43: 3.885551625 | E43: 3.769911102
B44: 0.78 | C44: 5.963820906 | D44: 3.904610121 | E44: 3.79066491
B45: 0.8 | C45: 5.421655369 | D45: 3.924125483 | E45: 3.811078873
B46: 0.82 | C46: 4.879489832 | D46: 3.944446241 | E46: 3.832245724
B47: 0.84 | C47: 4.337324295 | D47: 3.964843326 | E47: 3.854478658
B48: 0.86 | C48: 3.795158758 | D48: 3.985558735 | E48: 3.876970394
B49: 0.88 | C49: 3.252993221 | D49: 4.007506357 | E49: 3.899846073
B50: 0.9 | C50: 2.710827684 | D50: 4.030109029 | E50: 3.923046424
B51: 0.92 | C51: 2.168662148 | D51: 4.053144041 | E51: 3.947263654
B52: 0.94 | C52: 1.626496611 | D52: 4.076294207 | E52: 3.972229639
B53: 0.96 | C53: 1.084331074 | D53: 4.100558998 | E53: 3.996903929
B54: 0.98 | C54: 0.5421655369 | D54: 4.125279499 | E54: 4.023309919
B55: 1 | C55: 0 | D55: 4.15 | E55: 4.050972727

Sheet Volta NMC Cells (hidden)
A2: Cell Specifications: | F2: Module Specs: | G2: 28 | H2: Cells / Module
A3: Capacity (nom) | B3: 29 | C3: Ah | F3: Nominal Energy Rating | G3: =G5*G8 -> 2963.8 | H3: Wh
A4: Capacity (min) | B4: 27.5 | C4: Ah | F4: Maximum Energy Rating | G4: =G6*G8 -> 3398.22 | H4: Wh
A5: Cell Voltage (nom) | B5: 3.65 | C5: V | F5: Nominal Voltage | G5: =B5*14 -> 51.1 | H5: V
A6: Cycle Life (>80%) | B6: 2000 | C6: Cycles | F6: Maximum Voltage | G6: =B22*14 -> 58.59 | H6: V
A7: Operating Temp | B7: -20 | C7: 60 | D7: 0C | F7: Low Voltage | G7: =B23*14 -> 44.8 | H7: V
A8: Charging Temp | B8: 0 | C8: 45 | D8: 0C | F8: Module Capacity (Nom) | G8: =B3*2 -> 58 | H8: Ah
A9: AC Impedance | B9: ≤1 | C9: mΩ | F9: Maximum Module Charge | G9: 58 | H9: A | I9: 1C w/ 2 cell in Parallel up to 58.1V
A10: Energy Density | B10: 475 | C10: Wh/L | F10: Constant Voltage Charge | G10: 58.1 | H10: 58.8 | I10: V
A11: Gravimetric Density | B11: 220 | C11: Wh/kg
A12: Discharge V (min) | B12: 2 | C12: V
A13: Discharge Max (cont) | B13: 100 | C13: A
A14: Discharge peak | B14: 175 | C14: A
A15: Charge Method | B15: CC-CV
A16: Max Charge Current | B16: 29 | C16: A
A17: Constant Voltage | B17: 4.15 | C17: 4.2 | D17: V | F17: Total Modules per pack | G17: 5 | H17: # of Modules
A18: Charge Termination | B18: 290 | C18: mA | F18: Total Packs | G18: 2
F19: Total Pack Wh | G19: =(G17*G4)*G18 -> 33982.2 | H19: Wh
A20: Module Voltage High | B20: 58.8 | C20: V | F20: Total Pack(s) Ah | G20: =((G9)*G17)*G18 -> 580 | H20: Ah
A21: Module Voltage Low | B21: 44.8 | C21: V
A22: Cell Voltage High | B22: 4.185 | C22: V
A23: Cell Voltage Low | B23: 3.2 | C23: V
A24: BMS Over Current | B24: 200 | C24: A
A25: BMS Over Charge | B25: 55 | C25: A
A26: BMS Over Temp | B26: 55 | C26: 0C
A27: BMS Low Temp | B27: 0 | C27: 0C

Sheet Inverters (hidden)
A1: Sensata | F1: Sensata | K1: Sensata
A2: 48NP36HRQ-099 AC/DC Inverter | F2: 48DC12-150 DC/DC Converter with Integrated 48V Clamp | K2: 48DC12-240 DC/DC Converter with Integrated 48V Clamp
A4: Inverter: | F4: Converter: | K4: Converter:
A5: Output Power (W) AC continuous: | B5: 3600 | F5: Output Power (W) DC continuous: | G5: 1800 | H5: @250C | K5: Output Voltage (W) DC continuous:
A6: Output Current (A) AC continuous: | B6: 30 | F6: Output Current (A) DC continuous: | G6: 150 | K6: Output Current (A) DC continuous: | L6: 30
A7: Input Voltage (V) DC Range: | B7: 39V - 50V | C7: 5 sec @ 39V | F7: Output Voltage (V) DC nom.: | G7: 12.6 | K7: Output Voltage (V) DC nom.: | L7: 12.6
A8: Surge Voltage (V) DC: | B8: 60V | F8: Output Voltage (V) DC max.: | G8: 14.4V | K8: Output Voltage (V) DC max.: | L8: 14.4
A9: Input Current (A) DC continuous: | B9: 94 | F9: Input Voltage (V) DC Range: | G9: 39V - 50V | H9: 5 sec @ 39V | K9: Voltage Surge Rating (V): | L9: 60V
A10: Peak Power (W) AC: | B10: 6000 | D10: ` | F10: Input Current (A) DC continuous: | G10: 50 | K10: Input Voltage (V) DC Range: | L10: 39V - 50V | M10: 5 sec @ 39V
A11: Peak Output (A) AC: | B11: 100 | K11: Input Current (A) DC continuous: | L11: 100
A12: Weight (lbs): | B12: 68 | F12: Surge Voltage (V): | G12: 60 | K12: Idle current (typ) (A): | L12: 0.9
A13: Output Voltage (VAC): | B13: 120 | C13: ±5% | F13: Peak Output (W) : | G13: 3100 | K13: Continuous output Power (W): | L13: 3000
A14: Output Frequency (Hz): | B14: 60 | C14: ±0.05% | F14: Weight (lbs): | G14: 42 | K14: Weight (lbs): | L14: 63
A15: Output Waveform: | B15: Pure Sine < 5% THD | K15: Efficiency: | L15: 0.91 | M15: @ 40%
A16: Operating Temperature: | B16: -200C to 650C | K16: Efficiency: | L16: 0.84 | M16: @100%
A17: Inverter Efficiency: | B17: 0.91 | C17: @ 50%
F18: Operating Temperature: | G18: -200C to 650C | K18: Operating Temperature: | L18: -200C to 650C
A19: Charger: | F19: Converter Efficiency: | G19: 0.9 | H19: @50% | K19: Converter Efficiency: | L19: ~96%
A20: AC Input Voltage Range: | B20: 95VAC to 135VAC
A21: AC Input Current (Amps AC) | B21: 30 | F21: Clamp: | K21: Clamp:
A22: DC Output Current (Amps DC) | B22: 50 | F22: DC Clamp Voltage Range: | K22: DC Clamp Voltage Range:
A23: DC Output Voltage Max. (V DC) | B23: 48V | C23: ±xxV
A24: DC Output Voltage Max. (V DC) in SOC | B24: ~100%
F25: Clamp Power Capability (W): | K25: Clamp Power Capability (W):
A27: Bypass
A28: Amps AC | B28: 30
F29: On/Off voltage sense tab (V) | G29: 10-60 VDC | H29: On | K29: On/Off voltage sense tab (V) | L29: 10-60 VDC | M29: On
A30: On/Off voltage sense tab (V) | B30: 10-60 VDC | C30: On | F30: On/Off voltage sense tab (A) | G30: <1 mA | H30: On | K30: On/Off voltage sense tab (A) | L30: <1 mA | M30: On
A31: On/Off voltage sense tab (A) | B31: <1 mA | C31: On
A34: Questions:
A35: 1) What should switch be set for Battery Type? Does it matter? | F35: Questions: | K35: Questions:
A36: 2) Max output DC Voltage in charge mode?
A38: Model: 48NP36R description: 48VDC inverter /charger:
A40: We will program the recipe as follows for Bill to test in Milwaukee:
A41: INVERTER MODE:
A42: - 40.6V for inception of low battery
A43: - 43.6V hysteresis to clear the low battery condition
A44: - 46V to recover if there is a low battery shutdown
A46: CHARGER MODE:
A47: - Charger voltage to be 48 VDC
A48: - Change voltage from BULK to ACCEPT is 48 VDC
A49: - Full charge current is 50 amps ??
A53: Product on/off operation:
A55: OFF local switch needs to be OFF …….. AND …… Voltage sensor TAB in OFF
A56: ON local switch needs to be ON ……….. OR ………….. voltage sensor TAB needs to be ON

Sheet SOCvsOCV 10degC (hidden)
A1: 10°C
A2: Discharge Capacity (Ah) | B2: OCV (V) | C2: SOC vs OCV (10degC)
A3: 0 | B3: 4.1859 | C3: =(1-(A3/$A$22))*100 -> 100
A4: 1.25 | B4: 4.117 | C4: =(1-(A4/$A$22))*100 -> 94.50549451
A5: 2.5 | B5: 4.0542 | C5: 89.01098901
A6: 3.75 | B6: 3.9946 | C6: 83.51648352
A7: 5 | B7: 3.9379 | C7: 78.02197802
A8: 6.25 | B8: 3.8832 | C8: 72.52747253
A9: 7.5 | B9: 3.8263 | C9: 67.03296703
A10: 8.75 | B10: 3.7725 | C10: 61.53846154
A11: 10 | B11: 3.7285 | C11: 56.04395604
A12: 11.25 | B12: 3.6949 | C12: 50.54945055
A13: 12.5 | B13: 3.6691 | C13: 45.05494505
A14: 13.5 | B14: 3.6495 | C14: 40.65934066
A15: 14.75 | B15: 3.6328 | C15: 35.16483516
A16: 16 | B16: 3.6166 | C16: 29.67032967
A17: 17.25 | B17: 3.595 | C17: 24.17582418
A18: 18.5 | B18: 3.5685 | C18: 18.68131868
A19: 19.75 | B19: 3.539 | C19: 13.18681319
A20: 21 | B20: 3.5038 | C20: 7.692307692
A21: 22.25 | B21: 3.4693 | C21: 2.197802198
A22: 22.75 | B22: 3.4549 | C22: 0

Sheet SOCvsOCV 30degC (hidden)
A1: 30°C
A2: Discharge Capacity (Ah) | B2: OCV (V) | C2: SOC vs OCV (30degC)
A3: 0 | B3: 4.1861 | C3: =(1-($A3/$A$23))*100 -> 100
A4: 1.25 | B4: 4.1184 | C4: =(1-($A4/$A$23))*100 -> 94.79166667
A5: 2.5 | B5: 4.0554 | C5: 89.58333333
A6: 3.75 | B6: 3.996 | C6: 84.375
A7: 5 | B7: 3.9395 | C7: 79.16666667
A8: 6.25 | B8: 3.8866 | C8: 73.95833333
A9: 7.5 | B9: 3.8327 | C9: 68.75
A10: 8.75 | B10: 3.7773 | C10: 63.54166667
A11: 10 | B11: 3.7322 | C11: 58.33333333
A12: 11.25 | B12: 3.6992 | C12: 53.125
A13: 12.5 | B13: 3.6742 | C13: 47.91666667
A14: 13.5 | B14: 3.6546 | C14: 43.75
A15: 14.75 | B15: 3.6387 | C15: 38.54166667
A16: 16 | B16: 3.6222 | C16: 33.33333333
A17: 17.25 | B17: 3.5944 | C17: 28.125
A18: 18.5 | B18: 3.5673 | C18: 22.91666667
A19: 19.75 | B19: 3.5388 | C19: 17.70833333
A20: 21 | B20: 3.5039 | C20: 12.5
A21: 22.25 | B21: 3.4706 | C21: 7.291666667
A22: 23.5 | B22: 3.38 | C22: 2.083333333
A23: 24 | B23: 3.2415 | C23: 0

Sheet OCV Table (hidden)
A1: SOC (%) | B1: Cell OCV (V) Interpolated | C1: Cell OCV (V) Interpolated | D1: Pack OCV (V) Interpolated | E1: Pack OCV (V) Interpolated
A2: 100% | B2: 4.1861 | C2: 4.186V | D2: 58.6054 | E2: 58.61V
A3: 99% | B3: 4.1731016 | C3: 4.173V | D3: 58.4234224 | E3: 58.42V
A4: 98% | B4: 4.1601032 | C4: 4.16V | D4: 58.2414448 | E4: 58.24V
A5: 97% | B5: 4.1471048 | C5: 4.147V | D5: 58.0594672 | E5: 58.06V
A6: 96% | B6: 4.1341064 | C6: 4.134V | D6: 57.8774896 | E6: 57.88V
A7: 95% | B7: 4.121108 | C7: 4.121V | D7: 57.695512 | E7: 57.7V
A8: 94% | B8: 4.108824 | C8: 4.109V | D8: 57.523536 | E8: 57.52V
A9: 93% | B9: 4.096728 | C9: 4.097V | D9: 57.354192 | E9: 57.35V
A10: 92% | B10: 4.084632 | C10: 4.085V | D10: 57.184848 | E10: 57.18V
A11: 91% | B11: 4.072536 | C11: 4.073V | D11: 57.015504 | E11: 57.02V
A12: 90% | B12: 4.06044 | C12: 4.06V | D12: 56.84616 | E12: 56.85V
A13: 89% | B13: 4.0487472 | C13: 4.049V | D13: 56.6824608 | E13: 56.68V
A14: 88% | B14: 4.0373424 | C14: 4.037V | D14: 56.5227936 | E14: 56.52V
A15: 87% | B15: 4.0259376 | C15: 4.026V | D15: 56.3631264 | E15: 56.36V
A16: 86% | B16: 4.0145328 | C16: 4.015V | D16: 56.2034592 | E16: 56.2V
A17: 85% | B17: 4.003128 | C17: 4.003V | D17: 56.043792 | E17: 56.04V
A18: 84% | B18: 3.991932 | C18: 3.992V | D18: 55.887048 | E18: 55.89V
A19: 83% | B19: 3.981084 | C19: 3.981V | D19: 55.735176 | E19: 55.74V
A20: 82% | B20: 3.970236 | C20: 3.97V | D20: 55.583304 | E20: 55.58V
A21: 81% | B21: 3.959388 | C21: 3.959V | D21: 55.431432 | E21: 55.43V
A22: 80% | B22: 3.94854 | C22: 3.949V | D22: 55.27956 | E22: 55.28V
A23: 79% | B23: 3.9378072 | C23: 3.938V | D23: 55.1293008 | E23: 55.13V
A24: 78% | B24: 3.9276504 | C24: 3.928V | D24: 54.9871056 | E24: 54.99V
A25: 77% | B25: 3.9174936 | C25: 3.917V | D25: 54.8449104 | E25: 54.84V
A26: 76% | B26: 3.9073368 | C26: 3.907V | D26: 54.7027152 | E26: 54.7V
A27: 75% | B27: 3.89718 | C27: 3.897V | D27: 54.56052 | E27: 54.56V
A28: 74% | B28: 3.8870312 | C28: 3.887V | D28: 54.4184368 | E28: 54.42V
A29: 73% | B29: 3.8766824 | C29: 3.877V | D29: 54.2735536 | E29: 54.27V
A30: 72% | B30: 3.8663336 | C30: 3.866V | D30: 54.1286704 | E30: 54.13V
A31: 71% | B31: 3.8559848 | C31: 3.856V | D31: 53.9837872 | E31: 53.98V
A32: 70% | B32: 3.845636 | C32: 3.846V | D32: 53.838904 | E32: 53.84V
A33: 69% | B33: 3.8353592 | C33: 3.835V | D33: 53.6950288 | E33: 53.7V
A34: 68% | B34: 3.8247224 | C34: 3.825V | D34: 53.5461136 | E34: 53.55V
A35: 67% | B35: 3.8140856 | C35: 3.814V | D35: 53.3971984 | E35: 53.4V
A36: 66% | B36: 3.8034488 | C36: 3.803V | D36: 53.2482832 | E36: 53.25V
A37: 65% | B37: 3.792812 | C37: 3.793V | D37: 53.099368 | E37: 53.1V
A38: 64% | B38: 3.7812688 | C38: 3.781V | D38: 52.9377632 | E38: 52.94V
A39: 63% | B39: 3.7726096 | C39: 3.773V | D39: 52.8165344 | E39: 52.82V
A40: 62% | B40: 3.7639504 | C40: 3.764V | D40: 52.6953056 | E40: 52.7V
A41: 61% | B41: 3.7552912 | C41: 3.755V | D41: 52.5740768 | E41: 52.57V
A42: 60% | B42: 3.746632 | C42: 3.747V | D42: 52.452848 | E42: 52.45V
A43: 59% | B43: 3.736424 | C43: 3.736V | D43: 52.309936 | E43: 52.31V
A44: 58% | B44: 3.730088 | C44: 3.73V | D44: 52.221232 | E44: 52.22V
A45: 57% | B45: 3.723752 | C45: 3.724V | D45: 52.132528 | E45: 52.13V
A46: 56% | B46: 3.717416 | C46: 3.717V | D46: 52.043824 | E46: 52.04V
A47: 55% | B47: 3.71108 | C47: 3.711V | D47: 51.95512 | E47: 51.96V
A48: 54% | B48: 3.704744 | C48: 3.705V | D48: 51.866416 | E48: 51.87V
A49: 53% | B49: 3.6894096 | C49: 3.689V | D49: 51.6517344 | E49: 51.65V
A50: 52% | B50: 3.6856464 | C50: 3.686V | D50: 51.5990496 | E50: 51.6V
A51: 51% | B51: 3.6818832 | C51: 3.682V | D51: 51.5463648 | E51: 51.55V
A52: 50% | B52: 3.67812 | C52: 3.678V | D52: 51.49368 | E52: 51.49V
A53: 49% | B53: 3.6743568 | C53: 3.674V | D53: 51.4409952 | E53: 51.44V
A54: 48% | B54: 3.6705936 | C54: 3.671V | D54: 51.3883104 | E54: 51.39V
A55: 47% | B55: 3.6668304 | C55: 3.667V | D55: 51.3356256 | E55: 51.34V
A56: 46% | B56: 3.6630672 | C56: 3.663V | D56: 51.2829408 | E56: 51.28V
A57: 45% | B57: 3.659304 | C57: 3.659V | D57: 51.230256 | E57: 51.23V
A58: 44% | B58: 3.6555408 | C58: 3.656V | D58: 51.1775712 | E58: 51.18V
A59: 43% | B59: 3.6523104 | C59: 3.652V | D59: 51.1323456 | E59: 51.13V
A60: 42% | B60: 3.6492576 | C60: 3.649V | D60: 51.0896064 | E60: 51.09V
A61: 41% | B61: 3.6462048 | C61: 3.646V | D61: 51.0468672 | E61: 51.05V
A62: 40% | B62: 3.643152 | C62: 3.643V | D62: 51.004128 | E62: 51V
A63: 39% | B63: 3.6400992 | C63: 3.64V | D63: 50.9613888 | E63: 50.96V
A64: 38% | B64: 3.636984 | C64: 3.637V | D64: 50.917776 | E64: 50.92V
A65: 37% | B65: 3.633816 | C65: 3.634V | D65: 50.873424 | E65: 50.87V
A66: 36% | B66: 3.630648 | C66: 3.631V | D66: 50.829072 | E66: 50.83V
A67: 35% | B67: 3.62748 | C67: 3.627V | D67: 50.78472 | E67: 50.78V
A68: 34% | B68: 3.624312 | C68: 3.624V | D68: 50.740368 | E68: 50.74V
A69: 33% | B69: 3.6204208 | C69: 3.62V | D69: 50.6858912 | E69: 50.69V
A70: 32% | B70: 3.6150832 | C70: 3.615V | D70: 50.6111648 | E70: 50.61V
A71: 31% | B71: 3.6097456 | C71: 3.61V | D71: 50.5364384 | E71: 50.54V
A72: 30% | B72: 3.604408 | C72: 3.604V | D72: 50.461712 | E72: 50.46V
A73: 29% | B73: 3.5990704 | C73: 3.599V | D73: 50.3869856 | E73: 50.39V
A74: 28% | B74: 3.5937496 | C74: 3.594V | D74: 50.3124944 | E74: 50.31V
A75: 27% | B75: 3.5885464 | C75: 3.589V | D75: 50.2396496 | E75: 50.24V
A76: 26% | B76: 3.5833432 | C76: 3.583V | D76: 50.1668048 | E76: 50.17V
A77: 25% | B77: 3.57814 | C77: 3.578V | D77: 50.09396 | E77: 50.09V
A78: 24% | B78: 3.5729368 | C78: 3.573V | D78: 50.0211152 | E78: 50.02V
A79: 23% | B79: 3.5677336 | C79: 3.568V | D79: 49.9482704 | E79: 49.95V
A80: 22% | B80: 3.562284 | C80: 3.562V | D80: 49.871976 | E80: 49.87V
A81: 21% | B81: 3.556812 | C81: 3.557V | D81: 49.795368 | E81: 49.8V
A82: 20% | B82: 3.55134 | C82: 3.551V | D82: 49.71876 | E82: 49.72V
A83: 19% | B83: 3.545868 | C83: 3.546V | D83: 49.642152 | E83: 49.64V
A84: 18% | B84: 3.540396 | C84: 3.54V | D84: 49.565544 | E84: 49.57V
A85: 17% | B85: 3.5340536 | C85: 3.534V | D85: 49.4767504 | E85: 49.48V
A86: 16% | B86: 3.5273528 | C86: 3.527V | D86: 49.3829392 | E86: 49.38V
A87: 15% | B87: 3.520652 | C87: 3.521V | D87: 49.289128 | E87: 49.29V
A88: 14% | B88: 3.5139512 | C88: 3.514V | D88: 49.1953168 | E88: 49.2V
A89: 13% | B89: 3.5072504 | C89: 3.507V | D89: 49.1015056 | E89: 49.1V
A90: 12% | B90: 3.5007032 | C90: 3.501V | D90: 49.0098448 | E90: 49.01V
A91: 11% | B91: 3.4943096 | C91: 3.494V | D91: 48.9203344 | E91: 48.92V
A92: 10% | B92: 3.487916 | C92: 3.488V | D92: 48.830824 | E92: 48.83V
A93: 9% | B93: 3.4815224 | C93: 3.482V | D93: 48.7413136 | E93: 48.74V
A94: 8% | B94: 3.4751288 | C94: 3.475V | D94: 48.6518032 | E94: 48.65V
A95: 7% | B95: 3.4655264 | C95: 3.466V | D95: 48.5173696 | E95: 48.52V
A96: 6% | B96: 3.4481312 | C96: 3.448V | D96: 48.2738368 | E96: 48.27V
A97: 5% | B97: 3.430736 | C97: 3.431V | D97: 48.030304 | E97: 48.03V
A98: 4% | B98: 3.4133408 | C98: 3.413V | D98: 47.7867712 | E98: 47.79V
A99: 3% | B99: 3.3959456 | C99: 3.396V | D99: 47.5432384 | E99: 47.54V
A100: 2% | B100: 3.37446 | C100: 3.374V | D100: 47.24244 | E100: 47.24V
A101: 1% | B101: 3.30798 | C101: 3.308V | D101: 46.31172 | E101: 46.31V
A102: 0% | B102: 0 | C102: 0V | D102: 0 | E102: 0V
